bitfinex/quotes_SOLUSD_20250818
["timestamp","ask_amount","ask_price","bid_price","bid_amount"]
[1755518065982,0.06,181.2,181.19,46.58985373]
[1755518068159,1e-08,181.22,181.21,87.6760693]
[1755518069275,1e-08,181.22,181.21,93.19452854]
[1755518070906,1e-08,181.22,181.21,147.49452854]
[1755518071277,1e-08,181.23,181.21,121.49452854]
[1755518071483,1e-08,181.23,181.22,33.54985373]
[1755518072005,1e-08,181.23,181.22,33.47985373]
[1755518072493,1e-08,181.23,181.22,33.54985373]
[1755518073318,1e-08,181.23,181.22,39.06800845]
[1755518074817,1e-08,181.23,181.22,38.99800845]
[1755518075117,1e-08,181.23,181.22,78.01800845]
[1755518076893,1e-08,181.23,181.22,132.31800845]
[1755518078412,0.69000001,181.23,181.22,132.31800845]
[1755518079500,1e-08,181.23,181.22,132.31800845]
[1755518081093,1e-08,181.23,181.22,124.83815472]
[1755518081287,1e-08,181.23,181.22,93.29800845]
[1755518081520,0.69000001,181.23,181.22,132.29800845]
[1755518082523,1e-08,181.23,181.22,132.29800845]
[1755518093415,1e-08,181.25,181.24,26.0]
[1755518093599,1e-08,181.25,181.24,126.77985373]
[1755518094798,1e-08,181.25,181.24,132.29739952]
[1755518097131,1e-08,181.25,181.24,132.96739952]
[1755518097620,1e-08,181.26,181.24,132.96739952]
[1755518097795,1e-08,181.27,181.25,23.80779343]
[1755518097999,1e-08,181.27,181.26,46.45985373]
[1755518098198,1e-08,181.27,181.26,47.12985373]
[1755518099004,1e-08,181.27,181.26,51.97679072]
[1755518101006,0.72000001,181.27,181.26,12.99679072]
[1755518101205,0.72000001,181.27,181.26,44.49693699]
[1755518101406,0.72000001,181.27,181.26,51.97679072]
[1755518101606,1e-08,181.27,181.26,106.94679072]
[1755518101814,1e-08,181.28,181.26,148.05300629]
[1755518102122,1e-08,181.28,181.27,8.14985373]
[1755518102714,0.06,181.3,181.29,26.0]
[1755518102917,1e-08,181.3,181.29,141.8660693]
[1755518103118,0.06,181.31,181.3,5.5157198]
[1755518103119,1e-08,181.31,181.3,5.5157198]
[1755518103320,1e-08,181.31,181.3,12.99557353]
[1755518106452,0.72000001,181.31,181.3,59.8157198]
[1755518106624,0.72000001,181.31,181.3,106.27557353]
[1755518107946,0.72000001,181.31,181.3,51.97557353]
[1755518109120,15.82621558,181.31,181.27,5.51661362]
[1755518109318,8.19985373,181.3,181.28,38.98]
[1755518109618,4.42959015,181.29,181.28,38.98]
[1755518113053,4.42959015,181.29,181.28,44.49632833]
[1755518113250,3.70959015,181.29,181.28,51.97618206]
[1755518113547,0.72000001,181.31,181.28,51.97618206]
[1755518113732,0.72000001,181.31,181.29,7.47985373]
[1755518113928,1e-08,181.31,181.3,38.98]
[1755518114546,4.43056181,181.31,181.3,38.98]
[1755518116052,0.72000001,181.31,181.3,38.98]
[1755518117458,0.72000001,181.31,181.3,44.4957198]
[1755518117654,0.68000001,181.31,181.3,44.4957198]
[1755518117852,1e-08,181.31,181.3,44.4957198]
[1755518118236,1e-08,181.31,181.3,98.7957198]
[1755518119637,0.68000001,181.31,181.3,98.7957198]
[1755518120854,0.68000001,181.31,181.3,93.28]
[1755518121257,0.68000001,181.31,181.3,54.3]
[1755518121458,4.39088813,181.31,181.3,93.26]
[1755518123174,17.38615744,181.31,181.25,5.51724137]
[1755518123350,7.47985373,181.28,181.26,38.96]
[1755518123668,7.47985373,181.28,181.24,5.54747781]
[1755518123669,11.87168367,181.27,181.24,0.03]
[1755518123875,7.47985373,181.25,181.24,0.03]
[1755518124065,11.19168367,181.25,181.24,38.99]
[1755518124266,4.39182994,181.25,181.24,0.03]
[1755518124454,0.68,181.25,181.24,0.03]
[1755518125558,8.15985373,181.25,181.24,0.03]
[1755518126556,7.47985373,181.25,181.24,0.03]
[1755518128158,8.15985373,181.25,181.24,0.03]
[1755518145200,23.2660693,181.25,181.24,0.03]
[1755518145501,28.78331067,181.25,181.24,0.03]
[1755518146692,23.2660693,181.25,181.24,0.03]
[1755518147077,28.78331067,181.25,181.24,0.03]
[1755518148606,32.48744428,181.25,181.24,0.03]
[1755518148901,36.60428021,181.25,181.24,0.03]
[1755518151196,36.60428021,181.25,181.2,0.03]
[1755518151197,41.10621557,181.22,181.2,0.03]
[1755518151380,50.16398734,181.21,181.2,0.03]
[1755518151886,65.96020291,181.21,181.2,0.03]
[1755518152090,15.10621557,181.2,181.18,0.03]
[1755518152291,11.18398734,181.19,181.18,0.03]
[1755518152480,11.87398734,181.19,181.18,0.03]
[1755518153101,15.10621557,181.18,181.16,0.03]
[1755518153307,41.10621557,181.15,181.12,0.03]
[1755518153484,15.10621557,181.14,181.12,0.03]
[1755518153678,57.79034918,181.14,181.12,0.03]
[1755518153898,0.69,181.13,181.12,0.03]
[1755518154086,8.16985373,181.13,181.12,0.03]
[1755518159915,26.0,181.15,181.12,0.03]
[1755518160213,7.47985373,181.14,181.12,0.72]
[1755518160983,7.47985373,181.14,181.12,0.03]
[1755518161892,7.47985373,181.13,181.12,0.03]
[1755518163194,0.69,181.14,181.12,0.03]
[1755518163397,8.16985373,181.14,181.12,0.03]
[1755518166021,7.47985373,181.14,181.12,0.03]
[1755518166728,8.16985373,181.14,181.12,0.03]
[1755518166890,7.47985373,181.13,181.12,0.03]
[1755518167690,7.47985373,181.14,181.12,0.03]
[1755518168607,7.47985373,181.13,181.12,0.03]
[1755518170212,8.16985373,181.13,181.12,0.03]
[1755518173116,0.69,181.15,181.12,0.03]
[1755518173430,7.47985373,181.14,181.12,0.03]
[1755518174704,8.16985373,181.14,181.12,0.03]
[1755518175104,8.16985373,181.13,181.12,0.03]
[1755518176616,7.47985373,181.13,181.12,0.03]
[1755518176822,8.19985373,181.13,181.12,0.03]
[1755518179302,22.5860693,181.14,181.12,0.03]
[1755518179817,22.5860693,181.14,181.12,0.74]
[1755518180017,22.5860693,181.14,181.12,0.03]
[1755518180411,23.3060693,181.14,181.12,0.03]
[1755518180908,0.06,181.16,181.13,8.18985373]
[1755518181111,0.06,181.16,181.15,13.00014078]
[1755518181519,0.06,181.16,181.15,13.71014078]
[1755518182906,1e-08,181.16,181.15,13.71014078]
[1755518183118,1e-08,181.18,181.15,13.71014078]
[1755518183319,1e-08,181.18,181.17,7.47985373]
[1755518184013,1e-08,181.18,181.17,8.18985373]
[1755518184313,0.72,181.28,181.17,49.2960693]
[1755518184625,0.72,181.28,181.23,7.47985373]
[1755518184931,0.72,181.27,181.23,38.98]
[1755518185126,8.19985373,181.27,181.23,38.98]
[1755518185325,0.72,181.26,181.23,44.49761683]
[1755518185729,0.06,181.24,181.23,52.68747056]
[1755518188445,0.06,181.24,181.23,45.20761683]
[1755518191041,0.06,181.24,181.21,5.51818548]
[1755518191358,7.47985373,181.22,181.21,38.96]
[1755518191562,8.19985373,181.22,181.21,38.96]
[1755518192745,0.72,181.22,181.21,38.96]
[1755518193643,0.06,181.22,181.21,51.95831297]
[1755518193841,0.06,181.22,181.21,52.66831297]
[1755518198243,0.06,181.22,181.21,106.96831297]
[1755518199273,0.06,181.24,181.22,54.24]
[1755518199569,0.06,181.24,181.23,46.43985373]
[1755518200247,0.78,181.24,181.23,38.96]
[1755518200453,0.78,181.24,181.23,44.47785024]
[1755518202669,0.78,181.24,181.22,54.24]
[1755518202670,8.25985373,181.24,181.22,54.14]
[1755518202850,7.53985373,181.24,181.23,38.96]
[1755518203249,7.53985373,181.24,181.22,38.96]
[1755518203453,8.19985373,181.23,181.22,38.96]
[1755518204573,8.19985373,181.23,181.21,38.96]
[1755518204877,8.19985373,181.22,181.21,38.96]
[1755518205062,7.53985373,181.24,181.21,38.96]
[1755518205681,3.69538948,181.29,181.23,33.47985373]
[1755518205982,3.69538948,181.29,181.25,7.47985373]
[1755518206165,3.69538948,181.29,181.26,39.12]
[1755518206553,3.69538948,181.29,181.26,39.79]
[1755518206749,3.69538948,181.29,181.27,5.51663264]
[1755518207780,3.69538948,181.29,181.27,6.18663264]
[1755518209568,1e-08,181.31,181.27,13.66648637]
[1755518209772,3.17923685,181.33,181.31,26.0]
[1755518210106,0.06,181.36,181.35,26.0]
[1755518210259,0.06,181.36,181.35,65.48]
[1755518210460,7.47985373,181.47,181.35,72.95985373]
[1755518210659,4.09431811,181.46,181.41,7.47985373]
[1755518210879,0.68,181.47,181.41,46.95985373]
[1755518211066,4.09397238,181.49,181.41,46.95985373]
[1755518211256,1e-08,181.42,181.41,46.95985373]
[1755518211475,1e-08,181.42,181.41,52.47222901]
[1755518211968,0.68,181.51,181.41,92.25316721]
[1755518212177,0.68,181.51,181.41,84.77331348]
[1755518212375,0.68,181.51,181.49,7.47985373]
[1755518212590,13.9043834,181.52,181.49,46.93985373]
[1755518213282,13.9043834,181.52,181.49,60.84423773]
[1755518213478,13.9043834,181.52,181.49,66.35418318]
[1755518214377,13.9043834,181.52,181.49,70.46815707]
[1755518218207,13.9043834,181.52,181.49,70.40815707]
[1755518220213,14.5843834,181.52,181.49,70.40815707]
[1755518220393,0.78,181.5,181.49,50.93382762]
[1755518220787,0.78,181.5,181.49,39.34]
[1755518221104,0.78,181.5,181.49,50.93382762]
[1755518221815,0.78,181.5,181.49,39.34]
[1755518222030,0.78,181.5,181.49,39.36]
[1755518222594,0.78,181.5,181.49,50.95382762]
[1755518223114,0.78,181.5,181.49,39.36]
[1755518223783,0.78,181.5,181.49,50.95382762]
[1755518224413,0.78,181.5,181.49,39.36]
[1755518224715,0.78,181.5,181.44,11.59382762]
[1755518224895,11.59382762,181.48,181.45,39.32]
[1755518225401,11.59382762,181.46,181.45,39.32]
[1755518225720,0.1,181.5,181.46,5.51085638]
[1755518225919,0.1,181.5,181.49,11.59382762]
[1755518226093,0.1,181.5,181.49,50.93382762]
[1755518226403,0.1,181.5,181.48,11.59382762]
[1755518226603,0.1,181.5,181.49,39.32]
[1755518227195,0.78,181.5,181.49,39.32]
[1755518228407,0.1,181.5,181.49,50.91382762]
[1755518228723,0.78,181.5,181.49,39.32]
[1755518229099,0.1,181.5,181.49,39.32]
[1755518230595,0.1,181.5,181.49,44.82994545]
[1755518234531,0.1,181.5,181.49,39.32]
[1755518234737,0.78,181.5,181.49,39.32]
[1755518240128,0.78,181.5,181.49,39.26]
[1755518240942,0.78,181.5,181.48,5.51023109]
[1755518241136,0.78,181.5,181.49,39.26]
[1755518241636,0.1,181.5,181.49,44.76994545]
[1755518243845,0.1,181.5,181.49,52.22753366]
[1755518247919,0.1,181.5,181.49,44.76994545]
[1755518248124,0.1,181.5,181.49,52.16753366]
[1755518249627,0.81,181.5,181.49,44.76994545]
[1755518249935,0.81,181.5,181.49,39.26]
[1755518250265,0.1,181.5,181.49,44.76994545]
[1755518250473,0.1,181.5,181.49,52.22753366]
[1755518255577,0.06,181.52,181.51,31.50933832]
[1755518255899,1e-08,181.52,181.51,78.30692653]
[1755518256275,1e-08,181.52,181.51,93.4131421]
[1755518263532,1e-08,181.54,181.52,15.10621557]
[1755518263694,1e-08,181.54,181.53,46.69758821]
[1755518264095,1e-08,181.54,181.53,87.80380378]
[1755518264501,1e-08,181.54,181.53,41.10621557]
[1755518264811,1e-08,181.54,181.53,87.78380378]
[1755518265418,1e-08,181.54,181.53,93.29253511]
[1755518266121,1e-08,181.54,181.53,67.29253511]
[1755518266416,0.77,181.58,181.56,26.0]
[1755518267810,0.06,181.58,181.57,106.36510597]
[1755518269610,0.67,181.62,181.57,120.13390037]
[1755518269914,7.45758821,181.67,181.61,7.45758821]
[1755518270115,3.70026389,181.68,181.62,46.67758821]
[1755518270421,7.45758821,181.67,181.62,46.67758821]
[1755518270618,3.70026389,181.68,181.62,46.67758821]
[1755518270824,0.67,181.66,181.62,39.22]
[1755518271041,0.67,181.66,181.63,5.50569839]
[1755518271221,0.67,181.66,181.64,39.24]
[1755518271638,0.1,181.69,181.65,7.45758821]
[1755518271943,0.67,181.65,181.63,19.26994438]
[1755518272114,0.1,181.69,181.63,19.26994438]
[1755518272115,0.67,181.67,181.64,39.22]
[1755518272313,0.1,181.69,181.64,39.22]
[1755518272947,0.67,181.68,181.65,5.50509221]
[1755518273151,0.67,181.68,181.67,7.45758821]
[1755518273716,0.67,181.68,181.67,46.87758821]
[1755518274156,0.67,181.68,181.67,7.45758821]
[1755518274330,0.67,181.68,181.67,46.85758821]
[1755518274641,0.67,181.68,181.67,39.4]
[1755518274978,0.1,181.69,181.68,5.50418317]
[1755518275140,0.1,181.69,181.68,12.96177138]
[1755518275467,0.1,181.69,181.68,44.88418317]
[1755518275765,0.77,181.69,181.68,52.34177138]
[1755518275929,0.1,181.69,181.68,52.34177138]
[1755518277139,0.77,181.69,181.68,52.34177138]
[1755518277944,0.1,181.69,181.68,52.34177138]
[1755518278848,0.77,181.69,181.68,44.86418317]
[1755518279147,0.77,181.69,181.68,52.32177138]
[1755518280348,0.1,181.69,181.68,52.32177138]
[1755518281068,1e-08,181.69,181.68,93.42798695]
[1755518281753,1e-08,181.7,181.68,93.42798695]
[1755518281955,1e-08,181.7,181.69,7.45758821]
[1755518282149,1e-08,181.7,181.69,12.96146844]
[1755518283969,1e-08,181.7,181.69,67.16146844]
[1755518291777,1e-08,181.7,181.69,59.70388023]
[1755518291990,1e-08,181.7,181.69,67.16146844]
[1755518294477,0.67000001,181.7,181.69,59.70388023]
[1755518294777,0.67000001,181.7,181.69,106.44146844]
[1755518295558,0.67000001,181.7,181.69,67.16146844]
[1755518295783,0.67000001,181.7,181.69,106.44146844]
[1755518295965,0.67000001,181.7,181.69,98.98388023]
[1755518296170,0.67000001,181.7,181.69,106.44146844]
[1755518297861,0.67000001,181.7,181.69,98.98388023]
[1755518298058,0.67000001,181.7,181.69,93.48]
[1755518298269,0.67000001,181.7,181.69,98.98388023]
[1755518298682,0.67000001,181.7,181.69,106.44146844]
[1755518299174,0.67000001,181.7,181.69,106.42146844]
[1755518300574,0.67000001,181.7,181.69,98.96388023]
[1755518301284,0.67000001,181.7,181.69,54.2]
[1755518301589,0.67000001,181.7,181.69,39.24]
[1755518306213,0.67000001,181.7,181.69,39.2]
[1755518309021,13.63116554,181.7,181.66,0.03]
[1755518309185,7.45758821,181.67,181.66,39.25]
[1755518309387,8.14758821,181.67,181.66,38.53]
[1755518309699,4.36502705,181.67,181.66,38.53]
[1755518309907,0.69,181.67,181.66,38.53]
[1755518310799,17.32710141,181.67,181.66,38.53]
[1755518310988,17.32710141,181.67,181.65,39.29]
[1755518311186,11.82261526,181.66,181.65,0.03]
[1755518312000,17.32740442,181.66,181.65,0.03]
[1755518312208,58.43361999,181.66,181.65,0.03]
[1755518312481,4.36502705,181.66,181.65,46.76758821]
[1755518312714,0.69,181.66,181.65,46.76758821]
[1755518312892,0.69,181.66,181.65,39.31]
[1755518313094,0.69,181.66,181.65,46.76758821]
[1755518313293,4.36502705,181.68,181.65,46.76758821]
[1755518313517,0.69,181.67,181.65,46.76758821]
[1755518313825,1e-08,181.7,181.66,7.45758821]
[1755518314028,1e-08,181.7,181.69,7.45758821]
[1755518314196,1e-08,181.7,181.69,47.47758821]
[1755518314590,0.69000001,181.7,181.67,5.50448615]
[1755518314820,1e-08,181.7,181.69,7.45758821]
[1755518315494,0.69000001,181.7,181.69,7.45758821]
[1755518316717,0.69000001,181.7,181.68,45.52389055]
[1755518316922,0.69000001,181.7,181.69,7.45758821]
[1755518318222,0.69000001,181.7,181.69,12.96146844]
[1755518318223,1e-08,181.7,181.69,12.96146844]
[1755518318922,0.69000001,181.7,181.69,12.96146844]
[1755518320114,4.36502706,181.7,181.69,47.41758821]
[1755518320419,0.69000001,181.7,181.69,47.41758821]
[1755518321814,0.69000001,181.7,181.69,52.92146844]
[1755518322499,0.69000001,181.7,181.69,107.12146844]
[1755518322698,0.69000001,181.7,181.69,99.66388023]
[1755518323923,1e-08,181.7,181.69,99.66388023]
[1755518325307,0.69000001,181.7,181.69,99.66388023]
[1755518325710,0.69000001,181.7,181.69,94.16]
[1755518326102,4.36502706,181.7,181.69,94.16]
[1755518326301,0.69000001,181.7,181.69,94.16]
[1755518326617,4.36502706,181.7,181.69,94.16]
[1755518326819,0.69000001,181.7,181.69,94.16]
[1755518327027,4.36502706,181.7,181.69,94.16]
[1755518327197,0.69000001,181.7,181.69,94.16]
[1755518327396,4.36502706,181.7,181.69,94.16]
[1755518327597,0.69000001,181.7,181.69,94.16]
[1755518327822,3.67502706,181.7,181.69,94.16]
[1755518328124,1e-08,181.7,181.69,94.16]
[1755518328308,3.67502706,181.7,181.69,39.96]
[1755518330523,3.67502706,181.7,181.69,45.46388023]
[1755518331432,3.67502706,181.7,181.69,52.92146844]
[1755518331601,1e-08,181.7,181.69,52.92146844]
[1755518331808,1e-08,181.7,181.69,45.46388023]
[1755518332114,1e-08,181.7,181.69,52.92146844]
[1755518333402,1e-08,181.7,181.69,53.61146844]
[1755518334234,1e-08,181.7,181.69,107.81146844]
[1755518334717,1e-08,181.7,181.69,107.12146844]
[1755518335098,1e-08,181.7,181.69,107.81146844]
[1755518336018,1e-08,181.7,181.69,53.61146844]
[1755518337125,1e-08,181.7,181.69,52.92146844]
[1755518338111,1e-08,181.7,181.69,53.61146844]
[1755518339122,1e-08,181.7,181.69,52.92146844]
[1755518342829,1e-08,181.7,181.68,5.50410442]
[1755518343032,0.70000001,181.7,181.69,39.6]
[1755518343255,4.40478749,181.7,181.69,39.6]
[1755518343866,1e-08,181.7,181.69,47.05758821]
[1755518344736,1e-08,181.7,181.69,52.56146844]
[1755518346034,1e-08,181.7,181.69,107.45146844]
[1755518348263,1e-08,181.7,181.69,99.99388023]
[1755518348571,1e-08,181.7,181.69,106.76146844]
[1755518351370,1e-08,181.7,181.69,107.45146844]
[1755518351573,1e-08,181.7,181.69,106.76146844]
[1755518353376,0.70000001,181.7,181.69,93.66]
[1755518354480,0.70000001,181.7,181.69,99.16388023]
[1755518356699,4.40547227,181.7,181.69,99.16388023]
[1755518357874,4.40547227,181.7,181.69,52.42146844]
[1755518358085,0.70000001,181.7,181.69,52.42146844]
[1755518360793,1e-08,181.7,181.69,52.42146844]
[1755518361166,0.67000001,181.7,181.69,52.42146844]
[1755518362694,4.37901291,181.7,181.69,52.42146844]
[1755518363592,4.37901291,181.7,181.69,39.34]
[1755518365071,8.5005606,181.7,181.69,39.34]
[1755518365891,8.50021279,181.7,181.69,39.34]
[1755518366070,21.46137832,181.7,181.69,39.34]
[1755518366276,15.957801,181.7,181.66,54.23]
[1755518366479,4.3790129,181.69,181.67,39.32]
[1755518366675,4.3790129,181.68,181.67,39.32]
[1755518369890,3.7090129,181.68,181.67,44.82448615]
[1755518373007,3.70775347,181.68,181.67,44.82448615]
[1755518374723,3.70775347,181.68,181.67,45.49448615]
[1755518375229,3.70775347,181.68,181.67,44.82448615]
[1755518375525,3.70775347,181.68,181.67,49.58858396]
[1755518375704,3.70775347,181.68,181.67,44.82448615]
[1755518376223,3.76775347,181.68,181.67,44.82448615]
[1755518378621,4.43775347,181.68,181.67,44.82448615]
[1755518379220,3.76775347,181.68,181.67,44.82448615]
[1755518381124,4.43775347,181.68,181.67,44.82448615]
[1755518382041,3.76775347,181.68,181.67,44.82448615]
[1755518383528,4.43775347,181.68,181.67,44.82448615]
[1755518383836,3.76775347,181.68,181.67,44.82448615]
[1755518384004,4.43775347,181.68,181.67,44.82448615]
[1755518384205,4.43775347,181.68,181.67,39.32]
[1755518385002,4.43775347,181.68,181.67,44.82448615]
[1755518385619,3.76775347,181.68,181.67,44.82448615]
[1755518389859,4.47775347,181.68,181.67,39.32]
[1755518392044,4.47775347,181.68,181.67,39.1]
[1755518392753,4.47775347,181.68,181.66,59.7347324]
[1755518392924,3.70775347,181.67,181.66,59.7347324]
[1755518393125,3.70775347,181.67,181.66,98.8347324]
[1755518395046,4.41775347,181.67,181.66,93.33]
[1755518395246,3.70775347,181.67,181.66,93.33]
[1755518395443,3.70775347,181.67,181.66,98.83478916]
[1755518397019,9.18185128,181.67,181.66,54.23]
[1755518397356,18.80656746,181.67,181.66,0.03]
[1755518398656,13.30208131,181.67,181.66,0.03]
[1755518399537,9.18185128,181.67,181.66,0.03]
[1755518399753,13.30222713,181.67,181.66,0.03]
[1755518400130,18.80671328,181.67,181.66,0.03]
[1755518400448,38.5480088,181.67,181.66,0.03]
[1755518400630,26.0,181.65,181.63,0.03]
[1755518400829,17.2294128,181.64,181.63,0.03]
[1755518401037,17.9394128,181.64,181.63,0.03]
[1755518401235,17.2294128,181.64,181.63,0.03]
[1755518401426,8.34455103,181.64,181.63,0.03]
[1755518401636,7.82926679,181.64,181.63,0.03]
[1755518401865,3.70775347,181.64,181.63,44.58409781]
[1755518402251,3.70775347,181.64,181.63,39.13]
[1755518402660,4.41775347,181.64,181.63,39.13]
[1755518402956,3.70775347,181.64,181.63,39.13]
[1755518403162,4.41775347,181.64,181.63,39.13]
[1755518403677,3.70775347,181.64,181.63,39.13]
[1755518403888,3.70775347,181.64,181.63,0.03]
[1755518404061,3.70775347,181.64,181.63,39.13]
[1755518404477,3.70775347,181.64,181.63,0.03]
[1755518404770,3.70775347,181.64,181.63,39.13]
[1755518404975,3.70775347,181.64,181.63,0.03]
[1755518405157,4.41775347,181.64,181.63,0.03]
[1755518405552,4.41775347,181.64,181.63,39.13]
[1755518406454,4.41775347,181.64,181.63,0.03]
[1755518406657,17.37116897,181.64,181.63,0.03]
[1755518406874,15.98853126,181.64,181.63,0.03]
[1755518407156,20.78392654,181.64,181.63,0.03]
[1755518407369,21.49392654,181.64,181.63,0.03]
[1755518407579,15.98853126,181.64,181.63,0.03]
[1755518407884,3.70775347,181.64,181.63,0.03]
[1755518408186,3.70775347,181.64,181.63,0.72]
[1755518408384,3.70775347,181.64,181.63,6.22569839]
[1755518408690,3.70775347,181.64,181.63,13.67371861]
[1755518410677,3.76775347,181.64,181.63,13.67371861]
[1755518411679,0.06,181.64,181.63,13.67371861]
[1755518411883,0.06,181.64,181.63,6.22569839]
[1755518413005,0.06,181.64,181.63,5.53569839]
[1755518413354,0.06,181.64,181.63,0.03]
[1755518413578,0.06,181.64,181.63,39.13]
[1755518413579,4.47836268,181.64,181.63,39.13]
[1755518414074,4.47836268,181.64,181.63,0.03]
[1755518414460,11.9263829,181.64,181.63,0.03]
[1755518415090,11.2163829,181.64,181.63,0.03]
[1755518415290,3.76836268,181.64,181.63,0.03]
[1755518415491,11.9263829,181.64,181.63,0.03]
[1755518416591,16.04778672,181.64,181.63,0.03]
[1755518417009,17.43177818,181.64,181.63,0.03]
[1755518417192,11.9263829,181.64,181.63,0.03]
[1755518417396,16.04763465,181.64,181.63,0.03]
[1755518417906,21.55302993,181.64,181.63,0.03]
[1755518418390,16.04763465,181.64,181.63,0.03]
[1755518418998,21.55302993,181.64,181.63,0.03]
[1755518419986,36.6592455,181.64,181.63,0.03]
[1755518420188,41.29488435,181.64,181.63,0.03]
[1755518420592,15.10621557,181.63,181.62,0.03]
[1755518420794,35.71675384,181.63,181.62,0.03]
[1755518421386,41.22245223,181.63,181.62,0.03]
[1755518422492,15.97647594,181.63,181.62,0.03]
[1755518423104,8.52845572,181.63,181.62,0.03]
[1755518423306,15.27647594,181.63,181.62,0.03]
[1755518423698,15.97647594,181.63,181.62,0.03]
[1755518425119,11.8563829,181.63,181.62,0.03]
[1755518426119,3.70836268,181.63,181.62,0.03]
[1755518426329,11.1563829,181.63,181.62,0.03]
[1755518427602,3.70836268,181.63,181.62,0.03]
[1755518427923,11.8563829,181.63,181.62,0.03]
[1755518428224,11.1563829,181.63,181.62,0.03]
[1755518428404,3.70836268,181.63,181.62,0.03]
[1755518428601,11.1563829,181.63,181.62,0.03]
[1755518429311,3.70836268,181.63,181.62,0.03]
[1755518430929,3.70836268,181.63,181.62,0.7]
[1755518431408,3.70836268,181.63,181.62,0.03]
[1755518431798,11.1563829,181.63,181.62,0.03]
[1755518432222,11.8563829,181.63,181.62,0.03]
[1755518433934,4.40836268,181.63,181.62,0.03]
[1755518434107,11.1563829,181.63,181.62,0.03]
[1755518434311,3.70836268,181.63,181.62,0.03]
[1755518434534,11.1563829,181.63,181.62,0.03]
[1755518434832,11.8563829,181.63,181.62,0.03]
[1755518435136,11.1563829,181.63,181.62,0.03]
[1755518435829,11.8563829,181.63,181.62,0.03]
[1755518436133,11.1563829,181.63,181.62,0.03]
[1755518436939,11.8563829,181.63,181.62,0.03]
[1755518437125,4.40836268,181.63,181.62,0.03]
[1755518437325,11.8563829,181.63,181.62,0.03]
[1755518437528,15.97512853,181.63,181.62,0.03]
[1755518440909,15.27512853,181.63,181.62,0.03]
[1755518441417,15.97512853,181.63,181.62,0.03]
[1755518441618,8.52710831,181.63,181.62,0.03]
[1755518442130,15.27512853,181.63,181.62,0.03]
[1755518443528,15.97512853,181.63,181.62,0.03]
[1755518444315,11.8563829,181.63,181.62,0.03]
[1755518444654,21.48437039,181.63,181.62,0.03]
[1755518444848,41.22464829,181.63,181.62,0.03]
[1755518445030,41.2250237,181.63,181.62,0.03]
[1755518445340,15.10621557,181.62,181.61,0.03]
[1755518445540,35.72353504,181.62,181.61,0.03]
[1755518445723,0.06,181.64,181.61,0.03]
[1755518445932,7.44802022,181.67,181.62,7.44802022]
[1755518446147,7.44802022,181.66,181.61,39.13]
[1755518446353,7.44802022,181.66,181.63,0.72]
[1755518446851,7.44802022,181.65,181.61,39.85]
[1755518447055,7.44802022,181.65,181.62,6.22600154]
[1755518447355,7.44802022,181.66,181.62,6.22600154]
[1755518447545,7.44802022,181.68,181.63,0.72]
[1755518448559,8.13802022,181.68,181.63,8.16802022]
[1755518448738,0.69,181.67,181.63,0.72]
[1755518448947,0.69,181.67,181.63,6.22566028]
[1755518450337,7.44802022,181.68,181.61,39.85]
[1755518450338,7.44802022,181.65,181.61,39.85]
[1755518450648,8.13802022,181.65,181.61,6.25625718]
[1755518451237,0.69,181.65,181.61,13.7042774]
[1755518451469,7.44802022,181.66,181.61,12.9842774]
[1755518451674,8.13802022,181.66,181.62,0.72]
[1755518451973,7.44802022,181.66,181.62,0.72]
[1755518452145,7.44802022,181.64,181.61,0.03]
[1755518452678,8.13802022,181.64,181.61,0.03]
[1755518453844,0.69,181.64,181.61,0.03]
[1755518454769,8.13802022,181.64,181.61,0.03]
[1755518456671,7.44802022,181.64,181.61,0.03]
[1755518456894,0.69,181.63,181.61,0.03]